bitfinex-derivatives/quotes_SOLF0:USTF0_20260129
["timestamp","ask_amount","ask_price","bid_price","bid_amount"]
[1769728941114,6.82133584,117.45,117.41,27.29361968]
[1769728941317,6.82133584,117.44,117.41,27.29361968]
[1769728941516,18.32890667,117.46,117.41,27.29361968]
[1769728941716,6.82258927,117.45,117.41,27.29361968]
[1769728942010,6.82258927,117.44,117.41,27.29361968]
[1769728942316,18.32890667,117.46,117.41,27.29361968]
[1769728942616,6.82450234,117.45,117.41,27.29361968]
[1769728942806,250.06709496,117.48,117.43,19.61611968]
[1769728943009,6.82494566,117.47,117.43,19.61611968]
[1769728943210,6.82494566,117.46,117.43,19.61611968]
[1769728943416,6.82230184,117.45,117.42,7.6773]
[1769728943615,18.32890667,117.47,117.42,7.6773]
[1769728943910,6.82227047,117.46,117.42,7.6773]
[1769728944117,6.82227047,117.45,117.42,7.6773]
[1769728944313,26.00310667,117.47,117.42,7.6773]
[1769728944515,6.82149672,117.46,117.42,7.6773]
[1769728944716,6.82149672,117.45,117.42,27.29341968]
[1769728944915,18.32890667,117.47,117.42,27.29341968]
[1769728945214,6.82162941,117.46,117.42,27.29341968]
[1769728945418,18.32890667,117.47,117.42,27.29341968]
[1769728945616,6.82074573,117.46,117.42,27.29341968]
[1769728945818,18.32890667,117.47,117.42,27.29341968]
[1769728946017,6.82074573,117.46,117.42,27.29341968]
[1769728946218,18.32890667,117.47,117.42,27.29341968]
[1769728946417,6.82006654,117.46,117.42,27.29341968]
[1769728946617,18.32890667,117.47,117.42,27.29341968]
[1769728946822,6.8199975,117.46,117.43,7.6766]
[1769728947018,18.32890667,117.47,117.43,7.6766]
[1769728947317,6.8199975,117.46,117.43,7.6766]
[1769728947523,18.32890667,117.47,117.43,7.6766]
[1769728947828,6.81930663,117.46,117.43,7.6766]
[1769728948122,18.32890667,117.47,117.43,7.6766]
[1769728948317,6.81686087,117.46,117.43,7.6766]
[1769728948517,18.32890667,117.47,117.43,7.6766]
[1769728948717,6.8167655,117.46,117.43,7.6766]
[1769728948910,18.32890667,117.47,117.43,7.6766]
[1769728949115,26.6758245,117.46,117.43,7.6766]
[1769728949411,19.859059,117.46,117.43,7.6766]
[1769728950723,19.859059,117.46,117.44,7.6759]
[1769728953219,1.566e-05,117.45,117.44,7.6759]
[1769728953526,19.859059,117.46,117.44,7.6759]
[1769728955324,250.57610314,117.48,117.44,7.6759]
[1769728955725,18.83791485,117.47,117.44,7.6759]
[1769728957424,231.73818829,117.48,117.44,7.6759]
[1769728957618,250.57610314,117.48,117.44,7.6759]
[1769728958020,250.57610314,117.48,117.45,7.6752]
[1769728958227,18.83791485,117.5,117.45,7.6752]
[1769728965225,6.77333953,117.49,117.45,7.6752]
[1769728965530,6.77333953,117.48,117.45,7.6752]
[1769728965721,18.83791485,117.49,117.45,7.6752]
[1769728965920,6.7732816,117.48,117.45,7.6752]
[1769728966122,18.83791485,117.49,117.44,20.02735718]
[1769728966325,25.61098566,117.48,117.44,20.02735718]
[1769728966519,18.83791485,117.48,117.44,20.02735718]
[1769728967427,6.77250226,117.47,117.44,20.02735718]
[1769728967628,18.83791485,117.48,117.44,20.02735718]
[1769728967831,6.77242717,117.47,117.44,20.02735718]
[1769728968129,18.83791485,117.48,117.44,20.02735718]
[1769728968328,6.77248401,117.47,117.44,20.02735718]
[1769728968631,18.83791485,117.48,117.44,20.02735718]
[1769728968928,6.77248401,117.47,117.44,20.02735718]
[1769728969126,18.83791485,117.48,117.44,20.02735718]
[1769728969331,6.77312852,117.47,117.44,20.02735718]
[1769728969520,18.83791485,117.48,117.44,20.02735718]
[1769728969724,6.77312852,117.47,117.44,20.02735718]
[1769728970025,18.83791485,117.48,117.44,20.02735718]
[1769728970220,6.77312852,117.47,117.44,20.02735718]
[1769728970424,18.83791485,117.48,117.44,20.02735718]
[1769728970630,6.77305742,117.47,117.44,20.02735718]
[1769728970931,18.83791485,117.48,117.44,20.02735718]
[1769728971229,6.77328811,117.47,117.44,20.02735718]
[1769728971430,18.83791485,117.48,117.44,20.02735718]
[1769728971628,6.77350039,117.47,117.44,20.02735718]
[1769728971829,18.83791485,117.48,117.44,20.02735718]
[1769728972030,6.77326969,117.47,117.44,20.02735718]
[1769728972228,18.83791485,117.48,117.44,20.02735718]
[1769728972430,6.77376696,117.47,117.44,20.02735718]
[1769728972624,18.83791485,117.48,117.44,20.02735718]
[1769728972923,6.77376696,117.47,117.44,20.02735718]
[1769728973123,18.83791485,117.48,117.44,20.02735718]
[1769728973324,6.77362847,117.47,117.44,20.02735718]
[1769728973527,18.83791485,117.48,117.44,20.02735718]
[1769728973727,6.77362847,117.47,117.44,20.02735718]
[1769728973928,18.83791485,117.48,117.44,20.02735718]
[1769728974230,6.77362847,117.47,117.44,20.02735718]
[1769728974426,18.83791485,117.48,117.44,20.02735718]
[1769728974625,6.77401045,117.47,117.44,20.02735718]
[1769728974826,18.83791485,117.48,117.44,20.02735718]
[1769728975022,6.77401045,117.47,117.44,20.02735718]
[1769728975336,18.83791485,117.48,117.44,20.02735718]
[1769728975631,6.7745581,117.47,117.44,20.02735718]
[1769728975831,18.83791485,117.48,117.44,20.02735718]
[1769728976135,6.77448299,117.47,117.44,20.02735718]
[1769728976434,18.83791485,117.48,117.44,20.02735718]
[1769728976630,6.77499436,117.47,117.44,20.02735718]
[1769728976837,18.83791485,117.48,117.44,20.02735718]
[1769728977037,6.77499002,117.47,117.44,20.02735718]
[1769728977336,18.83791485,117.48,117.44,20.02735718]
[1769728977537,6.77555396,117.47,117.44,20.02735718]
[1769728977736,18.83791485,117.48,117.44,20.02735718]
[1769728977932,6.77553671,117.47,117.44,20.02735718]
[1769728978137,6.79793678,117.46,117.42,26.85198245]
[1769728978339,6.79793678,117.45,117.42,26.85198245]
[1769728978538,18.71243912,117.47,117.42,26.85198245]
[1769728978734,6.79834536,117.46,117.42,26.85198245]
[1769728978933,6.79834536,117.45,117.42,26.85198245]
[1769728979139,18.71243912,117.47,117.42,26.85198245]
[1769728979340,6.79898111,117.46,117.42,26.85198245]
[1769728979536,6.79898111,117.45,117.41,7.6779]
[1769728979742,6.79877742,117.44,117.4,19.17468245]
[1769728979941,18.71243912,117.45,117.4,19.17468245]
[1769728980137,6.79851292,117.44,117.4,19.17468245]
[1769728980340,18.71243912,117.45,117.4,26.85328245]
[1769728980641,18.71243912,117.43,117.36,19.17468245]
[1769728980841,25.51159571,117.42,117.36,19.17468245]
[1769728981044,6.79915659,117.41,117.36,19.17468245]
[1769728981339,18.71243912,117.42,117.37,7.6806]
[1769728981542,6.78887208,117.41,117.37,7.6806]
[1769728981842,18.71243912,117.42,117.37,7.6806]
[1769728982040,6.78902984,117.41,117.37,26.85528245]
[1769728982241,18.71243912,117.42,117.37,26.85528245]
[1769728982438,6.785641,117.41,117.37,26.85528245]
[1769728982641,18.71243912,117.42,117.37,26.85528245]
[1769728982842,6.78568357,117.41,117.37,26.85528245]
[1769728983146,18.71243912,117.42,117.37,26.85528245]
[1769729009462,26.38983912,117.42,117.37,26.85528245]
[1769729011464,18.71243912,117.42,117.37,26.85528245]
[1769729020771,18.41604248,117.44,117.39,18.85431443]
[1769729020959,18.41604248,117.46,117.39,18.85431443]
[1769729021169,25.19667194,117.45,117.39,18.85431443]
[1769729021365,6.78062946,117.44,117.39,18.85431443]
[1769729021569,18.41604248,117.45,117.39,18.85431443]
[1769729021871,6.7846455,117.44,117.39,18.85431443]
[1769729022073,18.41604248,117.45,117.39,18.85431443]
[1769729022263,6.78462819,117.44,117.39,18.85431443]
[1769729022464,18.41604248,117.45,117.4,7.6781]
[1769729022660,6.78881503,117.44,117.4,7.6781]
[1769729022870,18.41604248,117.45,117.4,7.6781]
[1769729023070,6.78881068,117.44,117.4,7.6781]
[1769729023270,18.41604248,117.45,117.4,7.6781]
[1769729023468,6.79125033,117.44,117.4,7.6781]
[1769729023668,18.41604248,117.45,117.4,7.6781]
[1769729023873,6.79125033,117.44,117.4,7.6781]
[1769729024073,18.41604248,117.45,117.4,7.6781]
[1769729024372,6.79125033,117.44,117.4,7.6781]
[1769729024572,18.41604248,117.45,117.4,7.6781]
[1769729024772,6.79107487,117.44,117.4,7.6781]
[1769729025071,6.7908521,117.43,117.4,7.6781]
[1769729025273,18.41604248,117.44,117.4,7.6781]
[1769729025467,6.78995907,117.43,117.4,7.6781]
[1769729025668,18.41604248,117.44,117.4,7.6781]
[1769729025863,6.78998035,117.43,117.4,7.6781]
[1769729026063,18.41604248,117.44,117.4,7.6781]
[1769729026374,6.78955897,117.43,117.4,7.6781]
[1769729026576,18.41604248,117.44,117.4,7.6781]
[1769729026768,6.78955897,117.43,117.4,7.6781]
[1769729026969,18.41604248,117.44,117.4,7.6781]
[1769729027164,6.78955845,117.43,117.4,7.6781]
[1769729027371,18.41604248,117.44,117.4,7.6781]
[1769729027875,18.41604248,117.44,117.41,7.6779]
[1769729041684,18.41604248,117.44,117.4,18.85431443]
[1769729042886,18.41604248,117.44,117.4,26.53281443]
[1769729044886,26.97352398,117.46,117.4,26.53281443]
[1769729045089,26.08319993,117.45,117.4,26.53281443]
[1769729045387,6.78447595,117.44,117.4,26.53281443]
[1769729045688,19.29872398,117.45,117.4,26.53281443]
[1769729045988,6.78485847,117.44,117.4,26.53281443]
[1769729046287,19.29872398,117.45,117.4,26.53281443]
[1769729046488,6.78519228,117.44,117.4,26.53281443]
[1769729046687,19.29872398,117.45,117.4,26.53281443]
[1769729046887,6.78521355,117.44,117.4,26.53281443]
[1769729047090,19.29872398,117.45,117.4,26.53281443]
[1769729047281,6.78524609,117.44,117.4,26.53281443]
[1769729047477,19.29872398,117.45,117.4,26.53281443]
[1769729047677,6.78539107,117.44,117.4,26.53281443]
[1769729047883,19.29872398,117.45,117.4,18.85431443]
[1769729048078,6.78497978,117.44,117.4,18.85431443]
[1769729048279,19.29872398,117.45,117.4,18.85431443]
[1769729048484,6.78528428,117.44,117.4,18.85431443]
[1769729048685,19.29872398,117.45,117.4,18.85431443]
[1769729048880,6.78574716,117.44,117.4,18.85431443]
[1769729049087,19.29872398,117.45,117.4,18.85431443]
[1769729049288,6.78537109,117.44,117.4,26.53291443]
[1769729049487,7.6749,117.46,117.41,19.02022458]
[1769729049689,6.78615721,117.45,117.41,19.02022458]
[1769729049890,19.29872398,117.47,117.41,19.02022458]
[1769729050080,6.78645583,117.46,117.41,19.02022458]
[1769729050285,6.78645583,117.45,117.41,19.02022458]
[1769729050484,19.29872398,117.47,117.41,19.02022458]
[1769729050684,26.08502247,117.46,117.41,19.02022458]
[1769729050885,6.78629849,117.45,117.41,19.02022458]
[1769729051085,19.29872398,117.46,117.41,19.02022458]
[1769729051286,6.78617031,117.45,117.41,26.69822458]
[1769729051587,19.29872398,117.46,117.41,26.69822458]
[1769729051792,6.78663442,117.45,117.41,26.69822458]
[1769729052000,19.29872398,117.46,117.41,26.69822458]
[1769729052185,6.78663442,117.45,117.42,19.02022458]
[1769729052384,19.29872398,117.46,117.42,19.02022458]
[1769729052585,19.29872398,117.48,117.43,19.02022458]
[1769729054292,19.29872398,117.48,117.43,26.69642458]
[1769729055698,19.29872398,117.48,117.44,7.676]
[1769729055897,19.29872398,117.52,117.45,19.02022458]
[1769729056302,7.95065538,117.56,117.48,26.69372458]
[1769729056600,19.29872398,117.55,117.48,19.02022458]
[1769729058198,19.29872398,117.55,117.48,26.69372458]
[1769729061402,19.29872398,117.55,117.49,7.6727]
[1769729064305,19.29872398,117.55,117.48,26.69362458]
[1769729064500,19.29872398,117.54,117.45,19.02022458]
[1769729064697,19.29872398,117.52,117.45,19.02022458]
[1769729065908,19.29872398,117.52,117.46,27.8716932]
[1769729066206,19.29872398,117.52,117.44,20.1974932]
[1769729066403,19.59701956,117.5,117.4,20.1974932]
[1769729066603,19.59701956,117.48,117.4,20.1974932]
[1769729067706,19.59701956,117.48,117.4,27.8755932]
[1769729068501,19.59701956,117.48,117.41,20.1974932]
[1769729068706,19.59701956,117.47,117.42,20.1974932]
[1769729072206,19.59701956,117.47,117.42,27.8746932]
[1769729075908,7.6728,117.49,117.39,119.4525]
[1769729075909,20.18331262,117.49,117.44,20.34704174]
[1769729077301,20.18331262,117.49,117.44,28.02314174]
[1769729078816,20.18331262,117.49,117.45,7.6752]
[1769729081318,20.18331262,117.49,117.45,28.02224174]
[1769729082922,20.18331262,117.52,117.46,7.6745]
[1769729083114,26.86659564,117.51,117.46,7.6745]
[1769729083316,20.18331262,117.51,117.46,7.6745]
[1769729083523,20.18331262,117.51,117.47,7.674]
[1769729092939,20.18331262,117.51,117.46,28.02174174]
[1769729101540,20.18331262,117.51,117.46,20.34704174]
[1769729101541,22.10990759,117.5,117.46,20.34704174]
[1769729103545,29.78210759,117.5,117.46,20.34704174]
[1769729106045,22.10990759,117.49,117.44,28.25541648]
[1769729106642,29.78270759,117.49,117.44,28.25541648]
[1769729110852,29.78270759,117.49,117.44,20.57941648]
[1769729115647,29.78270759,117.49,117.44,28.25541648]
[1769729115843,7.6723,117.5,117.45,20.57941648]
[1769729116051,22.10990759,117.51,117.45,20.57941648]
[1769729116252,6.70430445,117.5,117.45,20.57941648]
[1769729116455,22.10990759,117.51,117.45,20.57941648]
[1769729116652,6.70436569,117.5,117.45,20.57941648]
[1769729116958,22.10990759,117.51,117.45,20.57941648]
[1769729117254,6.70436569,117.5,117.45,20.57941648]
[1769729117457,22.10990759,117.51,117.46,7.6747]
[1769729117655,6.70627595,117.5,117.46,7.6747]
[1769729117856,22.10990759,117.51,117.46,7.6747]
[1769729118156,6.70725359,117.5,117.46,7.6747]
[1769729118356,22.10990759,117.51,117.46,7.6747]
[1769729118552,30.03872618,117.53,117.48,20.57941648]
[1769729118758,6.70921762,117.52,117.48,20.57941648]
[1769729118957,22.10990759,117.53,117.48,20.57941648]
[1769729119156,6.70994883,117.52,117.49,28.25211648]
[1769729119362,22.10990759,117.54,117.49,28.25211648]
[1769729119549,6.71044578,117.53,117.49,28.25211648]
[1769729119749,6.71044578,117.52,117.49,28.25211648]
[1769729119957,22.10990759,117.54,117.49,28.25211648]
[1769729120159,6.71046292,117.53,117.49,28.25211648]
[1769729120354,6.71046292,117.52,117.49,28.25211648]
[1769729120659,22.10990759,117.54,117.49,28.25211648]
[1769729120854,6.71067624,117.53,117.49,28.25211648]
[1769729121056,6.71067624,117.52,117.49,28.25211648]
[1769729121258,22.10990759,117.54,117.49,20.57941648]
[1769729121453,28.81999996,117.53,117.49,20.57941648]
[1769729121653,6.71009237,117.52,117.49,20.57941648]
[1769729121954,22.10990759,117.53,117.49,20.57941648]
[1769729122154,6.71005819,117.52,117.49,20.57941648]
[1769729122354,22.10990759,117.53,117.49,20.57941648]
[1769729122555,6.70944815,117.52,117.49,20.57941648]
[1769729122755,22.10990759,117.53,117.49,20.57941648]
[1769729123262,22.10990759,117.55,117.5,20.57941648]
[1769729123954,22.10990759,117.55,117.51,28.25081648]
[1769729126657,30.05258039,117.57,117.52,21.78475783]
[1769729128264,22.38498039,117.57,117.52,29.45555783]
[1769729129754,22.38498039,117.57,117.49,21.78475783]
[1769729131366,22.38498039,117.57,117.51,7.671]
[1769729134654,21.9059078,117.55,117.49,7.6723]
[1769729136371,21.9059078,117.54,117.49,7.6723]
[1769729137369,21.9059078,117.54,117.49,31.01564264]
[1769729142275,7.6689,117.55,117.49,31.01564264]
[1769729142475,127.19541859,117.58,117.51,23.34334264]
[1769729142476,7.6683,117.56,117.51,23.34334264]
[1769729144377,21.9059078,117.56,117.51,31.01474264]
[1769729144567,21.9059078,117.56,117.52,23.34334264]
[1769729145061,21.9059078,117.58,117.52,31.01364264]
[1769729145461,21.9059078,117.6,117.52,23.34334264]
[1769729145668,21.9059078,117.6,117.51,119.3336]
[1769729145669,21.9059078,117.6,117.54,7.6695]
[1769729145875,21.9059078,117.6,117.54,31.01284264]
[1769729147272,29.5718078,117.6,117.54,31.01284264]
[1769729149174,21.9059078,117.59,117.54,31.01284264]
[1769729154580,21.9059078,117.59,117.55,31.01214264]
[1769729155286,341.31297979,117.61,117.55,31.01214264]
[1769729155687,341.31297979,117.61,117.56,20.65128653]
[1769729156880,21.9059078,117.61,117.57,20.65128653]
[1769729157886,29.80366032,117.63,117.57,28.31878653]
[1769729159492,22.13996032,117.62,117.57,28.31878653]
[1769729175114,30.06877891,117.66,117.6,20.65128653]
[1769729175409,22.13996032,117.66,117.6,20.65128653]
[1769729176511,22.13996032,117.66,117.6,28.31688653]
[1769729177611,22.13996032,117.65,117.6,28.31688653]
[1769729177914,22.13996032,117.65,117.6,20.65128653]
[1769729179020,22.13996032,117.65,117.6,28.31678653]
[1769729180115,22.13996032,117.65,117.6,20.65128653]
[1769729180822,22.13996032,117.67,117.61,20.65128653]
[1769729181320,22.13996032,117.66,117.61,20.65128653]
[1769729182519,22.13996032,117.66,117.61,28.31628653]
[1769729187920,22.13996032,117.66,117.62,15.91671368]
[1769729193330,22.13996032,117.66,117.62,23.58101368]
[1769729196433,22.13996032,117.66,117.62,15.91671368]
[1769729199132,7.6612,117.67,117.62,15.91671368]
[1769729199337,14.74176248,117.69,117.62,15.91671368]
[1769729199543,6.69158601,117.68,117.62,15.91671368]
[1769729199838,14.74176248,117.69,117.62,23.58041368]
[1769729200036,21.43369432,117.68,117.62,23.58041368]
[1769729200228,6.69315794,117.67,117.62,23.58041368]
[1769729200431,14.74176248,117.68,117.62,23.58041368]
[1769729200632,6.69269844,117.67,117.62,23.58041368]
[1769729200832,14.74176248,117.68,117.62,23.58041368]
[1769729201034,6.69270238,117.67,117.62,23.58041368]
[1769729201234,14.74176248,117.68,117.62,23.58041368]
[1769729201543,6.69333085,117.67,117.62,23.58041368]
[1769729201735,22.40226248,117.68,117.62,23.58041368]
[1769729202036,6.69333085,117.67,117.62,23.58041368]
[1769729202236,22.40226248,117.68,117.62,23.58041368]
[1769729202436,6.69373725,117.67,117.62,23.58041368]
[1769729202640,22.40226248,117.68,117.62,23.58041368]
[1769729202840,6.69342304,117.67,117.62,23.58041368]
[1769729203138,22.40226248,117.68,117.62,23.58041368]
[1769729204336,22.40226248,117.68,117.63,7.6637]
[1769729207243,14.74176248,117.67,117.63,23.23336033]
[1769729207546,14.74176248,117.67,117.63,15.56966033]
[1769729208046,14.74176248,117.67,117.62,23.23396033]
[1769729208542,22.40226248,117.68,117.63,15.56966033]
[1769729209341,29.09755506,117.67,117.62,7.6643]
[1769729209541,22.40286248,117.67,117.62,7.6643]
[1769729210441,22.40286248,117.67,117.62,23.23396033]
[1769729212751,14.74176248,117.67,117.62,23.23396033]
[1769729212954,14.74176248,117.67,117.6,15.56966033]
[1769729213255,14.74176248,117.64,117.6,15.56966033]
[1769729214356,22.40486248,117.64,117.6,15.56966033]
[1769729217258,6.70510529,117.63,117.6,15.56966033]
[1769729217452,22.40486248,117.64,117.6,15.56966033]
[1769729217758,6.70661976,117.63,117.6,15.56966033]
[1769729217961,22.40486248,117.64,117.6,15.56966033]
[1769729218151,6.70661976,117.63,117.6,15.56966033]
[1769729218452,22.40486248,117.64,117.6,15.56966033]
[1769729219358,6.71061365,117.63,117.6,15.56966033]
[1769729219548,22.40486248,117.64,117.6,15.56966033]
[1769729219751,6.71061365,117.63,117.6,15.56966033]
[1769729219951,22.40486248,117.64,117.6,15.56966033]
[1769729220154,6.71061373,117.63,117.6,15.56966033]
[1769729220354,22.40486248,117.64,117.6,15.56966033]
[1769729220559,6.71067685,117.63,117.6,15.56966033]
[1769729220758,22.40486248,117.64,117.6,15.56966033]
[1769729220950,6.71067685,117.63,117.6,15.56966033]
[1769729221147,22.40486248,117.64,117.6,15.56966033]
[1769729221352,6.71055558,117.63,117.6,15.56966033]
[1769729221550,22.40486248,117.64,117.6,15.56966033]
[1769729221753,6.71048197,117.63,117.6,15.56966033]
[1769729221954,22.40486248,117.64,117.6,15.56966033]
[1769729222156,6.71048455,117.63,117.6,15.56966033]
[1769729222357,22.40486248,117.64,117.6,15.56966033]
[1769729222657,6.71029395,117.63,117.6,15.56966033]
[1769729222854,22.40486248,117.64,117.6,15.56966033]
[1769729223054,6.71029395,117.63,117.6,15.56966033]
[1769729223255,22.40486248,117.64,117.6,15.56966033]
[1769729223454,6.71082226,117.63,117.6,15.56966033]
[1769729223658,22.40486248,117.64,117.6,15.56966033]
[1769729223858,6.71082226,117.63,117.6,15.56966033]
[1769729224057,22.40486248,117.64,117.6,15.56966033]
[1769729224257,6.71069795,117.63,117.6,15.56966033]
[1769729224458,22.40486248,117.64,117.6,15.56966033]
[1769729224748,6.71083196,117.63,117.6,15.56966033]
[1769729225052,22.40486248,117.64,117.6,15.56966033]
[1769729225253,11.65882875,117.71,117.62,13.21982985]
[1769729225453,3.74879243,117.71,117.64,13.21982985]
[1769729226462,3.74879243,117.71,117.65,13.21982985]
[1769729227061,7.6569,117.74,117.65,13.21982985]
[1769729227262,7.53429416,117.73,117.66,13.21982985]
[1769729235670,2.17404624,117.72,117.66,13.21982985]
[1769729238369,9.83214624,117.72,117.66,13.21982985]
[1769729240677,7.6581,117.72,117.66,13.21982985]
[1769729240880,119.1067,117.74,117.66,13.21982985]
[1769729242374,7.6581,117.72,117.66,13.21982985]
[1769729243379,7.6585,117.71,117.66,13.21982985]
[1769729243576,119.1067,117.74,117.66,13.21982985]
[1769729244377,7.6585,117.71,117.66,13.21982985]
[1769729244578,119.1135,117.73,117.66,13.21982985]
[1769729245287,7.6585,117.71,117.66,13.21982985]
[1769729245483,119.1135,117.73,117.66,13.21982985]
[1769729246488,7.6585,117.71,117.66,13.21982985]
[1769729246785,238.1948,117.75,117.66,13.21982985]
[1769729247386,7.6574,117.73,117.66,13.21982985]
[1769729247782,119.0782,117.77,117.66,13.21982985]
[1769729247987,7.6566,117.74,117.66,13.21982985]
[1769729251790,7.6547,117.77,117.66,13.21982985]
[1769729252783,7.6547,117.77,117.67,8.59019635]
[1769729253877,25.55,117.78,117.67,8.59019635]
[1769729253878,7.6555,117.76,117.67,8.59019635]
[1769729254085,6.39041468,117.75,117.67,8.59019635]
[1769729254285,7.6555,117.76,117.67,8.59019635]
[1769729257997,7.656,117.75,117.67,8.59019635]
[1769729260793,7.6566,117.74,117.67,8.59019635]
[1769729264101,7.6573,117.73,117.67,8.59019635]
[1769729269014,7.6578,117.72,117.67,8.59019635]
[1769729277914,119.0951,117.75,117.67,8.59019635]
[1769729278112,6.43826253,117.74,117.67,8.59019635]
[1769729278313,119.0951,117.75,117.67,8.59019635]
[1769729278515,6.43379782,117.74,117.67,8.59019635]
[1769729278817,7.6567,117.74,117.68,4.76129635]
[1769729279610,7.6567,117.74,117.67,7.661]
[1769729279611,7.6572,117.73,117.66,7.6616]
[1769729279818,7.6572,117.73,117.67,4.76129635]
[1769729284422,7.6572,117.73,117.67,12.42239635]
[1769729284922,7.6564,117.75,117.67,12.42239635]
[1769729285125,6.43597439,117.74,117.67,12.42239635]
[1769729285326,6.43597439,117.73,117.67,12.42239635]
[1769729285625,7.6564,117.75,117.67,12.42239635]
[1769729285825,6.43626197,117.74,117.67,12.42239635]
[1769729286018,6.43626197,117.73,117.67,12.42239635]
[1769729286218,7.6564,117.75,117.67,12.42239635]
[1769729286426,6.43622294,117.74,117.67,12.42239635]
[1769729286624,6.43622294,117.73,117.67,12.42239635]
[1769729286825,7.6564,117.75,117.67,12.42239635]
[1769729287026,6.4362255,117.74,117.67,12.42239635]
[1769729287221,6.4362255,117.73,117.67,12.42239635]
[1769729287526,7.6554,117.76,117.67,12.42239635]
[1769729287719,6.43623618,117.75,117.67,12.42239635]
[1769729287915,6.43623618,117.74,117.67,12.42239635]
[1769729288122,6.43623618,117.73,117.67,12.42239635]
[1769729288321,6.43623618,117.72,117.67,12.42239635]
[1769729288621,7.91003632,117.75,117.67,12.42239635]
[1769729288821,6.4362469,117.74,117.67,12.42239635]
[1769729289020,6.4362469,117.73,117.67,12.42239635]
[1769729289225,6.4362469,117.72,117.68,4.76129635]
[1769729289419,7.91003632,117.75,117.68,4.76129635]
[1769729289620,6.43622072,117.74,117.68,4.76129635]
[1769729289918,6.43622072,117.73,117.68,4.76129635]
[1769729290115,6.43622072,117.72,117.68,4.76129635]
[1769729290313,7.91003632,117.75,117.68,4.76129635]
[1769729290523,6.43618392,117.74,117.68,4.76129635]
[1769729290823,6.43618392,117.73,117.68,4.76129635]
[1769729291019,6.43618392,117.72,117.68,4.76129635]
[1769729291215,7.91003632,117.75,117.68,4.76129635]
[1769729291419,6.43614807,117.74,117.68,4.76129635]
[1769729291619,6.43614807,117.73,117.68,4.76129635]
[1769729291821,6.43614807,117.72,117.68,4.76129635]
[1769729292017,7.91003632,117.75,117.68,4.76129635]
[1769729292226,6.43595197,117.74,117.68,4.76129635]
[1769729292426,6.43595197,117.73,117.68,4.76129635]
[1769729292630,6.43595197,117.72,117.68,4.76129635]
[1769729292929,7.91003632,117.75,117.68,4.76129635]
[1769729293129,6.43601734,117.74,117.68,4.76129635]
[1769729293333,6.43601734,117.73,117.68,4.76129635]
[1769729293535,6.43601734,117.72,117.68,4.76129635]
[1769729293833,15.56593632,117.75,117.68,4.76129635]
[1769729294026,6.43695727,117.74,117.68,4.76129635]
[1769729294221,6.43695727,117.73,117.68,4.76129635]
[1769729294424,6.43695727,117.72,117.68,4.76129635]
[1769729294624,15.56593632,117.75,117.68,4.76129635]
[1769729294819,6.43751966,117.74,117.68,4.76129635]
[1769729295033,6.43751966,117.73,117.68,4.76129635]
[1769729295236,6.43751966,117.72,117.68,4.76129635]
[1769729295532,15.56593632,117.75,117.68,4.76129635]
[1769729295732,6.43858081,117.74,117.68,4.76129635]
[1769729296031,6.43858081,117.73,117.68,4.76129635]
[1769729296232,6.43858081,117.72,117.68,4.76129635]
[1769729296431,15.56593632,117.75,117.68,4.76129635]
[1769729296729,6.43984541,117.74,117.68,4.76129635]
[1769729296931,6.43984541,117.73,117.68,4.76129635]
[1769729297133,6.43984541,117.72,117.68,4.76129635]
[1769729297334,15.56593632,117.75,117.68,4.76129635]
[1769729297634,6.44142577,117.74,117.68,4.76129635]
[1769729297838,6.44142577,117.73,117.68,4.76129635]
[1769729298025,6.44142577,117.72,117.68,4.76129635]
[1769729298228,7.6559,117.75,117.68,4.76129635]
[1769729298430,6.44213732,117.74,117.68,4.76129635]
[1769729298632,7.6559,117.75,117.68,4.76129635]
[1769729298931,6.44192276,117.74,117.68,4.76129635]
[1769729299127,7.6559,117.75,117.68,4.76129635]
[1769729299327,6.44194914,117.74,117.68,4.76129635]
[1769729299535,7.6559,117.75,117.68,4.76129635]
[1769729299736,6.44082968,117.74,117.68,4.76129635]
[1769729299929,7.6559,117.75,117.68,4.76129635]
[1769729300134,6.44082575,117.74,117.68,4.76129635]
[1769729300333,7.6559,117.75,117.68,4.76129635]
[1769729300537,6.43986738,117.74,117.68,4.76129635]
[1769729300737,7.6566,117.74,117.68,4.76129635]
[1769729310642,119.0741,117.77,117.68,4.76129635]
[1769729310842,6.51783206,117.76,117.68,4.76129635]
[1769729311038,6.51783206,117.75,117.68,4.76129635]
[1769729311241,6.51783206,117.74,117.68,4.76129635]
[1769729311542,119.0741,117.77,117.68,4.76129635]
[1769729311743,6.51760457,117.76,117.68,4.76129635]
[1769729311944,6.51760457,117.75,117.68,4.76129635]
[1769729312238,6.51760457,117.74,117.68,4.76129635]
[1769729312440,7.6571,117.74,117.68,4.76129635]
[1769729314748,7.6571,117.74,117.69,4.76129635]
[1769729318053,7.6557,117.76,117.69,4.76129635]
[1769729318251,6.51685272,117.75,117.68,7.6604]
[1769729318447,6.51685272,117.74,117.68,7.6604]
[1769729318649,6.51685272,117.73,117.68,7.6604]